bitfinex/quotes_ETHUSD_20220731
["timestamp","ask_amount","ask_price","bid_price","bid_amount"]
[1659294030211,0.2,1706.5,1706.3,0.08786]
[1659294030424,2.89804672,1706.4,1706.3,0.08786]
[1659294030627,0.2,1706.5,1706.2,4.04]
[1659294030830,0.05,1706.8,1706.2,4.12787]
[1659294031033,8.2522,1707.0,1706.2,1.03258435]
[1659294031216,8.0022,1707.0,1706.4,0.08786]
[1659294031513,2.84804672,1706.9,1706.4,3.08786]
[1659294031740,0.2,1706.7,1706.3,0.01885504]
[1659294032049,0.2,1706.5,1706.3,0.01885504]
[1659294032226,3.09804672,1706.5,1706.3,0.10671504]
[1659294032534,0.2,1706.5,1706.3,0.10671504]
[1659294032744,0.2,1706.5,1706.3,3.40671504]
[1659294032906,0.05,1706.9,1706.4,0.34471435]
[1659294033244,8.0022,1707.0,1706.4,0.34471435]
[1659294033427,10.90024672,1707.0,1706.4,0.34471435]
[1659294033611,2.89804672,1706.9,1706.4,0.34471435]
[1659294033835,3.09804672,1706.9,1706.4,0.34471435]
[1659294034043,0.2,1706.6,1706.4,0.00071435]
[1659294034247,3.09804672,1706.8,1706.2,0.02633032]
[1659294034248,0.4,1706.3,1706.2,0.02633032]
[1659294034567,3.29804672,1706.3,1706.2,0.02633032]
[1659294035123,15.1545,1706.6,1706.2,0.02633032]
[1659294035332,2.89804672,1706.5,1706.2,0.02633032]
[1659294035526,18.05254672,1706.6,1706.2,0.02633032]
[1659294035756,0.05,1706.9,1706.2,0.02633032]
[1659294035976,2.89804672,1706.9,1706.3,0.00264434]
[1659294036141,8.0022,1707.0,1706.3,0.00264434]
[1659294036341,2.89804672,1706.9,1706.3,3.00264434]
[1659294036661,2.89804672,1706.9,1706.3,0.09049434]
[1659294036859,2.89804672,1706.9,1706.4,3.0]
[1659294037072,2.89804672,1706.9,1706.3,0.09049434]
[1659294037635,3.24276107,1706.9,1706.3,0.09049434]
[1659294038038,2.89804672,1706.8,1706.3,0.09049434]
[1659294038446,3.24276107,1706.8,1706.3,0.09049434]
[1659294038651,2.89804672,1706.7,1706.3,0.09049434]
[1659294039160,0.54471435,1706.6,1706.2,0.32633032]
[1659294039377,0.54471435,1706.6,1706.2,0.02633032]
[1659294039378,2.89804672,1706.5,1706.2,0.02633032]
[1659294039543,3.44276107,1706.6,1706.2,0.32626724]
[1659294039747,3.44276107,1706.6,1706.2,0.32633032]
[1659294039958,3.44276107,1706.6,1706.2,0.02633032]
[1659294040330,2.89804672,1706.5,1706.2,0.02633032]
[1659294042149,0.05,1706.8,1706.3,0.0114832]
[1659294042365,6.138,1706.9,1706.3,0.0114832]
[1659294042366,2.89804672,1706.7,1706.3,0.0114832]
[1659294043862,2.89804672,1706.7,1706.2,0.38629351]
[1659294044678,2.89804672,1706.7,1706.2,1.85072351]
[1659294045149,2.89804672,1706.7,1706.3,0.02628678]
[1659294045293,2.89804672,1706.7,1706.4,0.08786]
[1659294045868,2.89804672,1706.7,1706.4,0.20276476]
[1659294048603,2.89804672,1706.7,1706.3,0.02628678]
[1659294048604,0.34471435,1706.6,1706.3,0.02628678]
[1659294048803,2.89804672,1706.5,1706.3,0.02628678]
[1659294049404,3.24276107,1706.5,1706.3,0.02628678]
[1659294049919,0.2,1706.4,1706.3,0.02628678]
[1659294050165,0.2,1706.4,1705.9,11.25717436]
[1659294050280,0.2,1706.4,1705.9,11.20717436]
[1659294051094,0.2,1706.4,1706.0,3.0]
[1659294051294,3.4,1706.1,1706.0,3.0]
[1659294051496,0.4,1706.0,1705.9,0.02527436]
[1659294052092,0.2,1706.0,1705.9,0.02527436]
[1659294052766,0.2,1706.3,1705.9,0.02527436]
[1659294052972,3.09804672,1706.3,1705.9,0.02527436]
[1659294053180,2.89804672,1706.3,1705.9,0.02527436]
[1659294053328,10.549,1706.4,1706.0,0.17279001]
[1659294053533,13.44704672,1706.4,1706.0,0.17279001]
[1659294053758,10.549,1706.4,1706.0,0.17279001]
[1659294054531,10.549,1706.4,1706.0,0.07279001]
[1659294055672,10.549,1706.4,1706.0,0.16067001]
[1659294056191,0.05,1706.7,1706.1,3.33804672]
[1659294056352,0.05,1706.9,1706.2,5.92980016]
[1659294056594,0.05,1707.0,1706.3,0.44]
[1659294056911,0.05,1707.1,1706.4,0.89283]
[1659294057119,7.9669,1707.2,1706.5,0.03174785]
[1659294057429,8.26161435,1707.2,1706.5,0.03174785]
[1659294057784,2.89804672,1707.1,1706.5,0.03174785]
[1659294058419,9.39288107,1707.1,1706.5,0.03174785]
[1659294058621,2.89804672,1707.0,1706.5,0.03174785]
[1659294059422,9.03604672,1707.0,1706.5,0.03174785]
[1659294059581,2.91016672,1706.9,1706.5,0.03174785]
[1659294059923,2.89804672,1706.8,1706.5,0.03174785]
[1659294060963,2.89804672,1706.8,1706.0,15.42856875]
[1659294060964,0.4,1706.3,1705.8,0.68300533]
[1659294061173,0.3885822,1706.2,1705.8,0.68300533]
[1659294061352,0.5885822,1706.2,1705.4,9.1218]
[1659294061551,0.05,1706.3,1705.6,0.0879]
[1659294061883,0.05,1706.3,1705.7,0.4401]
[1659294061884,2.89804672,1706.3,1705.7,0.4401]
[1659294062089,3.28662892,1706.3,1705.6,0.0879]
[1659294062457,3.28662892,1706.3,1705.6,0.5281]
[1659294063244,2.89804672,1706.2,1705.6,0.0879]
[1659294063486,9.03604672,1706.2,1705.6,0.0879]
[1659294063689,2.89804672,1706.1,1705.6,0.0879]
[1659294064001,0.2,1705.8,1705.6,0.0879]
[1659294064213,3.09804672,1705.8,1705.3,7.8667]
[1659294064499,0.2,1705.6,1705.3,7.8667]
[1659294065257,2.94191457,1705.8,1705.3,7.8667]
[1659294065457,2.94191457,1705.8,1705.7,0.02542341]
[1659294065775,7.8035,1706.0,1705.7,0.01865551]
[1659294065978,2.89804672,1705.9,1705.7,0.01865551]
[1659294066369,2.89804672,1705.9,1705.4,0.07603461]
[1659294066698,2.89804672,1705.9,1705.4,0.20201897]
[1659294066905,2.89804672,1705.9,1705.4,3.20201897]
[1659294067078,2.89804672,1705.9,1705.4,3.11394461]
[1659294068392,0.2,1705.4,1705.2,0.05]
[1659294068592,0.2,1705.4,1704.9,0.05]
[1659294068593,0.4,1705.2,1704.9,0.05]
[1659294068794,3.29804672,1705.2,1704.6,0.05]
[1659294068960,3.29804672,1705.2,1704.5,19.03716526]
[1659294068961,0.34471435,1705.1,1704.5,19.03716526]
[1659294069160,0.34471435,1705.1,1704.5,18.98716526]
[1659294069161,0.2,1704.6,1704.5,18.98716526]
[1659294069365,0.26990246,1705.0,1704.5,18.98716526]
[1659294069366,0.31990246,1705.0,1704.6,0.4]
[1659294069619,3.24276107,1704.9,1704.3,0.05]
[1659294069832,3.24276107,1704.9,1704.0,0.3]
[1659294069833,0.2,1704.2,1704.0,0.3]
[1659294069974,6.39804672,1704.1,1703.5,1.55667751]
[1659294070173,6.39804672,1704.1,1703.3,7.9928]
[1659294070174,7.89804672,1704.0,1703.3,7.9928]
[1659294070367,7.89804672,1704.0,1703.1,11.8229]
[1659294070368,0.2,1703.4,1703.1,11.8229]
[1659294070569,0.2,1703.4,1703.0,9.1218]
[1659294070864,2.89804672,1703.4,1702.8,0.2]
[1659294071094,0.05,1703.5,1702.7,0.3409]
[1659294071304,0.05,1703.5,1702.9,0.2]
[1659294071528,0.05,1703.7,1703.0,0.4408]
[1659294071728,0.05,1703.8,1703.0,0.4408]
[1659294071886,3.3114,1704.2,1703.1,0.04500229]
[1659294071887,0.05,1703.9,1703.1,0.04500229]
[1659294072084,2.94804672,1703.9,1703.2,0.4408]
[1659294072324,0.41461681,1703.8,1703.2,0.61678436]
[1659294072520,0.41461681,1703.8,1703.2,0.17598436]
[1659294072725,2.94804672,1703.9,1703.2,0.17598436]
[1659294072726,0.05,1703.9,1703.3,0.17598436]
[1659294072928,2.89804672,1703.9,1703.3,0.61678436]
[1659294073232,0.41461681,1703.8,1703.3,0.17598436]
[1659294073401,0.41461681,1703.8,1703.2,0.68801]
[1659294073604,0.41461681,1703.8,1703.2,1.12881]
[1659294074392,0.41461681,1703.8,1703.2,0.3]
[1659294074393,9.45066353,1703.8,1703.2,0.3]
[1659294074702,2.89804672,1703.7,1703.1,0.6]
[1659294074902,2.89804672,1703.7,1703.1,0.3]
[1659294075312,2.89804672,1703.7,1702.9,1.17892]
[1659294075509,2.89804672,1703.7,1703.0,0.00443761]
[1659294075725,3.31266353,1703.7,1703.0,0.00443761]
[1659294075912,2.89804672,1703.6,1703.0,0.00443761]
[1659294076524,3.36266353,1703.7,1703.0,0.74523761]
[1659294076736,0.41461681,1703.7,1703.2,0.02400964]
[1659294076959,5.87391173,1703.6,1703.2,0.02400964]
[1659294077132,0.05,1703.9,1703.4,0.2]
[1659294077299,0.05,1704.1,1703.5,3.63874672]
[1659294077499,0.05,1704.2,1703.6,0.2]
[1659294077734,0.05,1704.4,1703.6,3.37598436]
[1659294077948,0.05,1704.4,1703.7,0.7407]
[1659294078105,0.05,1704.5,1703.7,1.21668436]
[1659294078307,0.05,1704.5,1704.1,0.2]
[1659294078510,2.97169771,1704.7,1704.1,0.2]
[1659294078511,0.2473,1704.7,1704.1,0.2]
[1659294078821,7.8667,1704.9,1704.2,0.52069871]
[1659294079064,0.05,1705.0,1704.3,0.06660566]
[1659294079236,0.05,1705.1,1704.3,0.06660566]
[1659294079656,0.05,1705.1,1704.4,0.34471435]
[1659294079843,0.1973,1705.0,1704.4,0.64471435]
[1659294080044,0.1973,1705.1,1704.4,0.64471435]
[1659294080253,0.1973,1705.1,1704.4,0.7113161]
[1659294080429,6.3853,1705.2,1704.4,0.7113161]
[1659294080639,6.138,1705.2,1704.5,0.02450776]
[1659294080841,2.89804672,1705.1,1704.5,0.02450776]
[1659294082833,3.09534672,1705.1,1704.5,0.02450776]
[1659294083036,2.89804672,1705.0,1704.5,0.02450776]
[1659294088439,2.89804672,1705.1,1704.6,0.34804404]
[1659294089192,6.2113,1705.3,1704.7,0.17598436]
[1659294089193,2.8222,1705.3,1704.7,0.17598436]
[1659294089368,2.7722,1705.3,1704.8,0.34804365]
[1659294089685,2.7722,1705.3,1704.8,0.52402801]
[1659294089839,0.05,1705.5,1704.8,0.52402801]
[1659294090038,12.1953,1705.6,1704.9,0.7403]
[1659294090039,0.05,1705.6,1704.9,0.7403]
[1659294090238,0.05,1705.7,1705.2,0.2]
[1659294090469,10.5792,1705.8,1705.0,0.22598436]
[1659294090667,10.5792,1705.8,1705.0,0.47598436]
[1659294090897,2.89804672,1705.7,1705.0,0.47598436]
[1659294091114,2.89804672,1705.7,1705.1,0.45961911]
[1659294092591,2.89804672,1705.7,1705.1,0.48384973]
[1659294092988,2.89804672,1705.7,1705.2,0.2]
[1659294093283,2.89804672,1705.7,1705.2,3.5]
[1659294093489,2.89804672,1705.7,1705.2,0.5]
[1659294093674,2.89804672,1705.7,1705.2,0.2]
[1659294095418,2.89804672,1705.7,1705.1,1.04774409]
[1659294095617,0.05,1705.9,1705.2,0.38422406]
[1659294095864,11.9174,1706.0,1705.6,0.2]
[1659294095865,11.77,1706.0,1705.6,0.2]
[1659294096033,7.78,1706.2,1705.6,3.18592672]
[1659294096364,7.73,1706.2,1705.7,4.42431249]
[1659294096717,7.73,1706.2,1705.9,0.2]
[1659294096918,7.73,1706.2,1706.0,0.38420553]
[1659294097151,0.00565764,1706.3,1706.1,0.2]
[1659294097465,0.00565764,1706.3,1706.1,0.28787]
[1659294097631,0.00565764,1706.3,1706.1,0.2]
[1659294097877,0.00565764,1706.3,1706.1,3.2]
[1659294098079,2.83495764,1706.6,1706.2,0.2]
[1659294098283,2.78495764,1706.6,1706.2,0.2]
[1659294098815,22.49831667,1706.9,1706.2,0.2]
[1659294099001,2.89804672,1706.8,1706.2,0.2]
[1659294100272,9.63604672,1706.8,1706.2,0.2]
[1659294100618,9.63604672,1706.8,1706.2,0.02373226]
[1659294100619,2.89804672,1706.5,1706.2,0.02373226]
[1659294100926,3.09804672,1706.4,1705.9,0.05]
[1659294101209,14.69804672,1706.3,1705.4,8.11508]
[1659294101412,2.89804672,1706.2,1705.4,7.8221]
[1659294101813,9.03604672,1706.2,1705.4,7.7342]
[1659294102026,9.03604672,1706.1,1705.4,7.7342]
[1659294102205,2.89804672,1706.0,1705.4,7.7342]
[1659294102385,2.89804672,1706.0,1705.4,8.67891435]
[1659294102589,2.89804672,1706.0,1705.5,3.0]
[1659294102794,2.89804672,1706.0,1705.4,0.34471435]
[1659294102795,6.39804672,1706.0,1705.4,0.34471435]
[1659294103099,2.89804672,1705.9,1705.3,3.1118]
[1659294103507,2.84804672,1705.9,1705.3,3.1118]
[1659294103693,2.84804672,1705.9,1705.3,0.34471435]
[1659294104296,0.05,1706.0,1705.4,0.2879]
[1659294104512,2.89804672,1706.1,1705.5,0.34471435]
[1659294104736,2.89804672,1706.1,1705.5,0.52069871]
[1659294104941,2.89804672,1706.1,1705.6,0.17598436]
[1659294105100,2.89804672,1706.1,1705.6,0.26388436]
[1659294105449,2.89804672,1706.1,1705.6,0.0879]
[1659294105744,2.89804672,1706.1,1705.5,0.94471435]
[1659294106405,2.89804672,1706.1,1705.5,1.03262435]
[1659294106608,2.89804672,1706.1,1705.5,1.09565654]
[1659294106832,2.89804672,1706.1,1705.5,3.4689609]
[1659294106996,2.89804672,1706.1,1705.5,2.9415909]
[1659294107197,2.89804672,1706.1,1705.7,0.08789]
[1659294111932,2.8567,1706.2,1705.8,0.54956914]
[1659294112115,2.8567,1706.2,1705.9,0.08787]
[1659294112320,2.8567,1706.2,1705.9,0.26385436]
[1659294112625,2.8567,1706.2,1705.9,0.63743744]
[1659294112896,19.6044,1706.3,1705.9,0.63743744]
[1659294113035,11.72,1706.3,1705.9,0.63743744]
[1659294113801,11.72,1706.3,1706.1,0.2]
[1659294114107,11.72,1706.3,1706.1,0.49890269]
[1659294114306,11.72,1706.3,1706.1,3.93890269]
[1659294115126,11.1669,1706.6,1706.1,3.93890269]
[1659294115329,2.9044,1706.6,1706.1,3.49890269]
[1659294117727,11.77,1706.8,1706.5,0.2]
[1659294117969,11.72,1706.8,1706.7,3.7]
[1659294118332,0.00717344,1706.9,1706.8,4.2]
[1659294118533,0.00717344,1706.9,1706.8,7.46533136]
[1659294118757,0.00717344,1706.9,1706.8,11.24131572]
[1659294118931,0.00717344,1706.9,1706.8,11.04131572]
[1659294119133,0.00717344,1706.9,1706.8,3.3]
[1659294119337,0.00717344,1706.9,1706.6,14.61167294]
[1659294119554,0.00717344,1706.9,1706.6,18.35443401]
[1659294119771,0.00717344,1706.9,1706.8,6.0]
[1659294119948,0.00717344,1706.9,1706.8,11.89804672]
[1659294120158,0.00717344,1706.9,1706.8,12.74131572]
[1659294120466,0.64717344,1706.9,1706.8,3.0]
[1659294120648,0.64717344,1706.9,1706.6,11.37693]
[1659294120649,0.64717344,1706.9,1706.7,3.0]
[1659294120852,0.00717344,1706.9,1706.5,2.93783]
[1659294121259,0.00717344,1706.9,1706.6,0.08783]
[1659294121464,2.90522016,1706.9,1706.3,0.05]
[1659294121664,2.90522016,1706.9,1706.1,0.34553552]
[1659294121665,2.89804672,1706.8,1706.1,0.34553552]
[1659294121833,2.89804672,1706.6,1706.1,0.29553552]
[1659294122033,5.8685036,1706.6,1705.9,0.05]
[1659294122274,2.89804672,1706.5,1705.8,17.42234]
[1659294122484,0.05,1706.6,1705.9,0.08788]
[1659294122684,0.05,1706.7,1706.1,1.66449]
[1659294122979,0.05717344,1706.9,1706.2,0.28786]
[1659294123284,0.00717344,1706.9,1706.6,0.2]
[1659294123492,0.00717344,1706.9,1706.3,5.91439511]
[1659294123493,0.00717344,1706.9,1706.8,0.2]
[1659294124162,0.00717344,1706.9,1706.8,0.37598436]
[1659294124375,0.00717344,1706.9,1706.8,0.2]
[1659294124559,0.00717344,1706.9,1706.7,0.08783]
[1659294124757,0.00717344,1706.9,1706.8,9.94276107]
[1659294124940,0.00717344,1706.9,1706.8,13.41874543]
[1659294125139,0.00717344,1706.9,1706.8,13.51874543]
[1659294125415,0.00717344,1706.9,1706.8,4.32069871]
[1659294125587,0.00717344,1706.9,1706.8,4.12069871]
[1659294126246,0.00717344,1706.9,1706.8,7.01874543]
[1659294126670,0.00717344,1706.9,1706.8,7.21874543]
[1659294126841,0.05,1707.3,1707.2,5.2]
[1659294127060,0.00868924,1707.5,1707.2,12.04276107]
[1659294127389,0.05,1707.8,1707.4,5.8]
[1659294127583,1.05,1708.0,1707.5,3.19067672]
[1659294127798,1.0,1708.0,1707.5,3.19804672]
[1659294128035,1.0,1708.0,1707.7,0.2]
[1659294128224,1.0,1708.0,1707.7,0.28778]
[1659294128996,1.0,1708.0,1707.7,4.94886672]
[1659294129186,1.0,1708.0,1707.8,3.34471435]
[1659294129587,1.0,1708.0,1707.7,3.38778]
[1659294129809,1.0,1708.0,1707.8,3.0]
[1659294130016,1.0,1708.0,1707.6,0.02602831]
[1659294130380,3.89804672,1708.0,1707.6,0.02602831]
[1659294130629,3.89804672,1708.0,1707.3,0.05]
[1659294130630,2.89804672,1707.9,1707.3,0.05]
[1659294130791,2.89804672,1707.9,1707.2,11.3803]
[1659294131195,2.89804672,1707.9,1707.3,0.08781]
[1659294131950,2.89804672,1707.9,1707.3,3.45855722]
[1659294132158,2.89804672,1707.9,1707.3,5.21460722]
[1659294132456,1.05,1708.0,1707.3,5.21460722]
[1659294132457,1.05,1708.0,1707.6,0.2]
[1659294132660,1.05,1708.0,1707.7,0.3758474]
[1659294132661,12.72,1708.0,1707.7,0.3758474]
[1659294133254,12.72,1708.0,1707.7,0.6758474]
[1659294133855,12.72,1708.0,1707.7,3.66167412]
[1659294134049,12.72,1708.0,1707.8,3.0]
[1659294134263,12.72,1708.0,1707.8,3.3]
[1659294134487,12.47,1708.0,1707.8,3.3]
[1659294137429,12.47,1708.0,1707.8,3.5]
[1659294138515,0.75,1708.0,1707.8,3.5]
[1659294139519,0.75,1708.0,1707.8,3.3]
[1659294139724,9.00420285,1707.1,1706.3,0.17726981]
[1659294139914,9.00420285,1707.1,1705.9,8.1097]
[1659294139915,6.39804672,1707.0,1705.9,8.1097]
[1659294140115,2.94804672,1706.9,1705.9,8.1097]
[1659294140644,2.94804672,1706.9,1705.9,7.9097]
[1659294140852,2.89804672,1706.8,1705.9,7.9097]
[1659294141053,0.2,1706.6,1705.9,7.9097]
[1659294141360,11.0347,1707.1,1705.9,8.56203422]
[1659294141361,0.05,1706.7,1705.9,8.56203422]
[1659294141524,0.05,1706.8,1705.9,8.48801858]
[1659294141722,0.05,1706.8,1706.3,0.2]
[1659294141922,0.05,1707.0,1706.6,0.2]
[1659294142142,0.05,1707.2,1706.6,0.2]
[1659294142342,0.05,1707.4,1706.7,6.67598436]
[1659294142515,0.05,1707.5,1706.8,3.0]
[1659294142718,0.05,1707.6,1706.8,0.6]
[1659294142917,0.05,1707.6,1706.9,0.34471435]
[1659294143146,2.76,1707.9,1706.9,0.52069871]
[1659294143147,0.05,1707.7,1706.9,0.52069871]
[1659294143350,0.05,1707.8,1707.0,1.17598436]
[1659294143519,1.81,1707.9,1707.1,0.34471435]
[1659294143718,1.81,1707.9,1707.1,0.64471435]
[1659294144329,1.81,1707.9,1707.2,0.03766313]
[1659294144524,1.76,1707.9,1707.2,0.38237748]
[1659294145119,1.76,1707.9,1707.3,0.0878]
[1659294145352,1.76,1707.9,1707.4,0.38237308]
[1659294145554,0.8,1708.0,1707.4,2.14530308]
[1659294145555,0.75,1708.0,1707.4,2.14530308]
[1659294145763,0.75,1708.0,1707.4,2.73788308]
[1659294146154,0.75,1708.0,1707.5,4.04721252]
[1659294146320,0.75,1708.0,1707.6,0.38236866]
[1659294146520,0.75,1708.0,1707.6,0.68236866]
[1659294147141,0.75,1708.0,1707.8,0.2]
[1659294148367,0.05535844,1707.9,1707.8,0.2]
[1659294148548,0.05535844,1707.9,1707.8,0.66066274]
[1659294149281,0.05535844,1707.9,1707.8,0.86066274]
[1659294149485,0.05535844,1707.9,1707.8,1.1366471]
[1659294149633,5.844e-05,1707.9,1707.8,1.1366471]
[1659294150521,5.844e-05,1707.9,1707.8,1.3366471]
[1659294150773,5.844e-05,1707.9,1707.8,1.25422731]
[1659294150979,0.70005844,1708.0,1707.9,6.0]
[1659294151180,0.70005844,1708.0,1707.9,11.89804672]
[1659294152537,0.01020503,1708.2,1708.0,6.5]
[1659294152756,0.01020503,1708.2,1708.1,3.3]
[1659294153184,0.01020503,1708.2,1708.1,3.64471435]
[1659294154320,0.00020503,1708.2,1708.1,6.54276107]
[1659294154623,0.00020503,1708.2,1708.1,6.91874543]
[1659294154977,0.00020503,1708.2,1708.1,6.54276107]
[1659294155208,0.00020503,1708.2,1708.1,3.64471435]
[1659294155407,0.00020503,1708.2,1708.1,3.54276107]
[1659294155592,0.00020503,1708.2,1708.1,6.54276107]
[1659294156080,0.00020503,1708.2,1708.1,10.44904571]
[1659294157213,0.00020503,1708.2,1708.1,6.74904571]
[1659294157515,0.00020503,1708.2,1708.1,10.24904571]
[1659294157728,0.00020503,1708.2,1708.1,6.74904571]
[1659294157880,11.72,1708.9,1708.7,7.7]
[1659294158221,11.72,1708.9,1708.8,5.36912154]
[1659294158222,11.44015248,1708.9,1708.8,5.36912154]
[1659294158530,7.73,1709.0,1708.8,0.06912154]
[1659294158828,7.93,1709.0,1708.4,0.05]
[1659294158976,7.73,1709.0,1708.2,0.13775]
[1659294159176,7.73,1709.0,1708.3,2.96718849]
[1659294159389,1.1388097,1709.1,1708.3,2.96718849]
[1659294159606,2.89804672,1709.0,1708.3,0.06914177]
[1659294159828,2.89804672,1709.0,1708.4,3.0]
[1659294159981,14.34955642,1709.1,1708.5,0.06913367]
[1659294160179,11.4515097,1709.1,1708.5,0.71384802]
[1659294160380,11.4515097,1709.1,1708.6,2.89804672]
[1659294160621,1.1388097,1709.1,1708.7,3.0]
[1659294160917,1.1388097,1709.1,1708.7,3.34471435]
[1659294161127,1.1388097,1709.1,1708.7,0.34471435]
[1659294161480,1.0888097,1709.1,1708.7,0.34471435]
[1659294161943,3.98685642,1709.1,1708.7,0.34471435]
[1659294162131,11.72,1709.3,1709.0,10.69804672]
[1659294162460,0.3024093,1710.0,1709.2,7.0]
[1659294162617,0.3024093,1710.0,1709.5,0.2]
[1659294163060,0.3024093,1710.0,1709.5,0.64471435]
[1659294163245,0.2524093,1710.0,1709.5,0.34471435]
[1659294163460,0.2524093,1710.0,1709.3,0.05]
[1659294163667,0.4524093,1710.0,1709.2,0.05]
[1659294163953,0.2524093,1710.0,1709.1,0.05]
[1659294164528,0.2524093,1710.0,1709.1,2.94804672]
[1659294164719,0.2524093,1710.0,1709.2,6.19804672]
[1659294164912,0.2524093,1710.0,1709.3,0.64471435]
[1659294165357,0.2524093,1710.0,1709.4,0.11490476]
[1659294165642,0.2524093,1710.0,1709.5,0.34471435]
[1659294166087,0.2024093,1710.0,1709.4,3.41490476]
[1659294166284,2.89804672,1709.9,1709.4,0.41490476]
[1659294166461,3.10045602,1710.0,1709.4,0.11490476]
[1659294166797,3.10045602,1710.0,1709.2,0.05]
[1659294166798,0.5,1709.8,1709.2,0.05]
[1659294166949,0.2024093,1710.0,1709.4,0.45961911]
[1659294167292,0.2024093,1710.0,1709.2,0.05]
[1659294167293,2.89804672,1709.9,1709.2,0.05]
[1659294167454,2.89804672,1709.9,1709.1,0.05]
[1659294167650,2.89804672,1709.9,1709.0,0.05]
[1659294167860,2.89804672,1709.9,1709.1,3.28575672]
[1659294168087,2.89804672,1709.9,1709.2,0.75961911]
[1659294168256,2.79804672,1709.9,1709.2,3.75961911]
[1659294168461,0.2524093,1710.0,1709.2,3.75961911]
[1659294168658,0.2524093,1710.0,1709.4,0.2]
[1659294168872,0.2024093,1710.0,1709.3,0.08769]
[1659294169077,0.2024093,1710.0,1709.2,0.35]
[1659294169258,2.89804672,1709.9,1709.1,0.05]
[1659294169521,2.89804672,1709.9,1709.0,0.35]
[1659294169522,2.89804672,1709.8,1709.0,0.35]
[1659294169751,2.89804672,1709.8,1709.0,0.3]
[1659294169938,0.05,1709.9,1709.1,3.25186993]
[1659294170266,0.05,1709.9,1709.2,6.19804672]
[1659294170426,0.2524093,1710.0,1709.2,6.19804672]
[1659294170628,3.15045602,1710.0,1709.3,0.35382214]
[1659294170833,0.2024093,1710.0,1709.4,2.89804672]
[1659294171029,0.2024093,1710.0,1709.7,0.2]
[1659294172219,0.1024093,1710.0,1709.7,0.2]
[1659294172568,0.1024093,1710.0,1709.9,7.7]
[1659294172725,0.1024093,1710.0,1709.9,13.59804672]
[1659294172930,0.1024093,1710.0,1709.9,3.0]
[1659294173186,0.1024093,1710.0,1709.8,3.75961911]
[1659294173332,0.1024093,1710.0,1709.8,1.05961911]
[1659294173720,0.1024093,1710.0,1709.9,6.39804672]
[1659294174035,0.1024093,1710.0,1709.9,9.39804672]
[1659294174528,0.1024093,1710.0,1709.9,9.57403108]
[1659294175613,0.0524093,1710.0,1709.9,6.07403108]
[1659294175817,0.0524093,1710.0,1709.9,5.89804672]
[1659294176128,0.0524093,1710.0,1709.9,3.0]
[1659294176453,8.1961,1710.8,1709.9,6.98572672]
[1659294176621,8.1961,1710.8,1710.0,6.32879873]
[1659294176622,11.04414672,1710.8,1710.0,6.32879873]
[1659294176820,11.04414672,1710.8,1710.0,0.78075201]
[1659294176821,2.89804672,1710.7,1710.0,0.78075201]
[1659294177033,2.89804672,1710.7,1710.1,0.08767]
[1659294177233,0.2,1710.2,1709.5,0.63898558]
[1659294177472,3.7,1710.2,1709.5,1.23329173]
[1659294177627,9.838,1710.2,1709.2,3.19631356]
[1659294177836,0.1973,1710.1,1709.2,3.19631356]
[1659294178155,9.8813,1710.6,1709.4,4.42548989]
[1659294178361,8.8813,1710.6,1709.4,4.42548989]
[1659294178669,8.8813,1710.6,1709.7,0.2]
[1659294178866,8.8813,1710.6,1709.9,0.2]
[1659294179031,5.8058,1710.6,1709.9,0.2]
[1659294179231,2.7918,1710.6,1709.8,1.72874942]
[1659294179431,0.1973,1710.9,1710.2,0.2]
[1659294179726,3.0,1711.0,1710.6,0.2]
[1659294179985,3.0,1711.0,1710.8,0.2]
[1659294180163,3.0,1711.0,1710.8,2.89804672]
[1659294180332,3.0,1711.0,1710.7,0.0288671]
[1659294180755,3.0,1711.0,1710.6,0.3288671]
[1659294181075,3.0,1711.0,1710.6,3.22691382]
[1659294181276,3.0,1711.0,1710.7,6.19804672]
[1659294181596,3.0,1711.0,1710.7,3.30899529]
[1659294181795,2.75,1711.0,1710.7,0.30899529]
[1659294182103,0.1974,1710.9,1710.4,0.05]
[1659294182306,0.1974,1710.9,1710.2,0.05]
[1659294182461,0.43075201,1710.8,1710.3,2.89804672]
[1659294182659,0.43075201,1710.8,1710.3,2.90704413]
[1659294182912,2.8,1711.0,1710.4,8.39804672]
[1659294183065,2.75,1711.0,1710.5,3.33594672]
[1659294183271,2.75,1711.0,1710.6,2.89804672]
[1659294183602,2.75,1711.0,1710.6,3.19804672]
[1659294183807,2.75,1711.0,1710.5,0.30899635]
[1659294184363,3.18075201,1711.0,1710.5,0.00899635]
[1659294184593,3.38075201,1711.0,1710.3,0.05]
[1659294184941,9.61674672,1710.9,1710.2,0.05]
[1659294185093,3.32879873,1710.8,1710.1,0.05]
[1659294185303,2.89804672,1710.7,1710.0,0.05]
[1659294185611,2.89804672,1710.7,1709.9,0.05]
[1659294185822,0.43075201,1710.6,1709.8,0.05]
[1659294186026,0.43075201,1710.6,1710.0,0.0288671]
[1659294186027,0.48075201,1710.6,1710.0,0.0288671]
[1659294186194,0.05,1710.7,1710.1,2.98570672]
[1659294186393,8.0849,1710.8,1710.1,2.98570672]
[1659294186734,11.41369873,1710.8,1710.1,0.08766]
[1659294186908,2.89804672,1710.7,1710.1,0.08766]
[1659294187114,2.89804672,1710.7,1709.9,0.05]
[1659294187295,2.89804672,1710.7,1710.0,0.0288671]
[1659294187625,0.43075201,1710.6,1710.0,0.0288671]
[1659294187832,0.43075201,1710.6,1710.0,3.01457382]
[1659294188037,0.43075201,1710.6,1710.1,2.89804672]
[1659294188334,0.43075201,1710.6,1710.0,3.4165271]
[1659294188539,2.89804672,1710.5,1710.0,3.08766]
[1659294188705,2.89804672,1710.5,1710.0,0.08766]
[1659294188908,0.05,1710.7,1710.0,0.08766]
[1659294188909,2.89804672,1710.6,1710.0,0.08766]
[1659294189104,0.05,1710.7,1710.0,0.1165271]
[1659294189105,2.94804672,1710.7,1710.0,0.1165271]
[1659294189439,2.89804672,1710.7,1710.0,0.1165271]